bitfinex/quotes_SOLUSD_20240614
["timestamp","ask_amount","ask_price","bid_price","bid_amount"]
[1718353867746,0.836066,148.31,148.26,20.0]
[1718353872557,0.836066,148.31,148.29,0.17]
[1718353872750,0.836066,148.31,148.29,0.68]
[1718353873062,0.836066,148.31,148.28,20.0]
[1718353873362,0.836066,148.31,148.29,45.0]
[1718353873560,0.836066,148.31,148.3,20.17]
[1718353873774,0.836066,148.31,148.3,65.0]
[1718353877064,0.836066,148.31,148.3,65.17]
[1718353877277,0.836066,148.31,148.3,65.34]
[1718353878643,0.836066,148.31,148.3,65.51]
[1718353879944,0.836066,148.31,148.3,20.0]
[1718353880468,0.836066,148.31,148.28,0.17]
[1718353880776,0.836066,148.31,148.28,45.51]
[1718353880969,0.836066,148.31,148.3,6.11]
[1718353881167,0.836066,148.31,148.3,26.11]
[1718353881365,0.836066,148.31,148.27,1.80073904]
[1718353881771,0.836066,148.31,148.24,10.46567665]
[1718353881979,0.836066,148.31,148.28,6.11]
[1718353882357,0.836066,148.31,148.29,6.11]
[1718353882977,0.836066,148.31,148.25,2.4956]
[1718353883454,0.836066,148.31,148.26,0.34]
[1718353883976,0.836066,148.31,148.26,20.0]
[1718353889378,0.836066,148.31,148.23,12.13491265]
[1718353889379,0.836066,148.31,148.25,20.0]
[1718353889678,0.836066,148.31,148.23,24.29722497]
[1718353889859,0.836066,148.31,148.23,4.29722497]
[1718353892685,0.836066,148.31,148.24,45.68]
[1718353892883,0.836066,148.31,148.25,20.0]
[1718353895681,15.1549,148.29,148.23,1.80122497]
[1718353896761,15.1549,148.29,148.21,20.0]
[1718353897775,15.1549,148.29,148.21,22.4963]
[1718353898385,15.1549,148.29,148.22,2.8362]
[1718353898587,15.1549,148.29,148.23,2.496]
[1718353898790,15.1549,148.29,148.24,0.34]
[1718353898957,15.1549,148.29,148.23,20.0]
[1718353899158,15.1549,148.29,148.24,45.0]
[1718353904901,15.1549,148.29,148.25,6.12]
[1718353906598,6.12,148.28,148.2,1.17247596]
[1718353906789,6.12,148.28,148.22,6.12]
[1718353907290,21.2749,148.29,148.23,6.12]
[1718353907793,21.2749,148.29,148.24,6.12]
[1718353909096,15.1549,148.29,148.27,6.12]
[1718353909477,15.1549,148.29,148.26,6.12]
[1718353910383,15.1549,148.29,148.21,2.6663]
[1718353910569,15.1549,148.29,148.25,6.12]
[1718353911371,15.1549,148.29,148.26,6.12]
[1718353911570,15.1549,148.29,148.25,6.12]
[1718353912371,15.1549,148.29,148.26,6.12]
[1718353913204,15.1549,148.29,148.22,1.17260988]
[1718353913416,15.1549,148.29,148.26,6.12]
[1718353913903,21.2749,148.29,148.22,1.17260988]
[1718353914111,21.2749,148.29,148.23,6.12]
[1718353916806,21.2749,148.29,148.22,1.17260988]
[1718353917106,21.2749,148.29,148.23,6.12]
[1718353920419,15.1549,148.29,148.23,6.12]
[1718353920717,15.1549,148.29,148.22,2.4961]
[1718353920921,15.1549,148.29,148.25,6.12]
[1718353921291,15.1549,148.29,148.26,6.12]
[1718353922195,15.1549,148.29,148.22,2.4962]
[1718353922394,15.1549,148.29,148.26,6.12]
[1718353922715,15.1549,148.29,148.27,6.12]
[1718353924621,15.1549,148.29,148.22,2.4962]
[1718353924801,15.1549,148.29,148.26,6.12]
[1718353925425,15.1549,148.29,148.22,2.4962]
[1718353925599,15.1549,148.29,148.26,6.12]
[1718353928412,15.1549,148.29,148.25,6.12]
[1718353929127,21.2749,148.29,148.21,1.17285356]
[1718353929434,21.2749,148.29,148.23,6.12]
[1718353930439,6.12,148.28,148.21,1.17285356]
[1718353930628,6.185,148.26,148.17,4.29895436]
[1718353930804,6.185,148.26,148.21,6.12]
[1718353931220,16.3966,148.25,148.2,6.12]
[1718353931417,22.5166,148.25,148.2,6.12]
[1718353931722,22.5166,148.25,148.19,6.12]
[1718353931929,22.5166,148.25,148.2,6.12]
[1718353932627,22.5166,148.25,148.17,1.17313793]
[1718353932628,16.3966,148.25,148.21,6.12]
[1718353932932,16.3966,148.25,148.22,6.12]
[1718353933427,16.3966,148.25,148.17,3.67013793]
[1718353933428,16.3966,148.25,148.21,6.12]
[1718353935003,16.3966,148.25,148.17,3.67013793]
[1718353935004,16.3966,148.25,148.17,1.17313793]
[1718353935306,22.5166,148.25,148.17,21.17313793]
[1718353935627,6.12,148.24,148.17,21.17313793]
[1718353935818,6.12,148.24,148.19,6.12]
[1718353936027,6.12,148.24,148.17,21.17313793]
[1718353936332,6.12,148.24,148.16,20.0]
[1718353936736,6.12,148.23,148.17,6.12]
[1718353937227,16.3966,148.25,148.17,6.12]
[1718353937415,6.12,148.23,148.16,20.0]
[1718353937611,6.12,148.23,148.15,1.17335613]
[1718353937612,6.12,148.23,148.18,6.12]
[1718353938004,6.12,148.23,148.15,1.17335613]
[1718353938203,12.3745,148.22,148.14,20.0]
[1718353938411,6.2545,148.22,148.14,21.17341678]
[1718353938626,6.2545,148.22,148.18,6.12]
[1718353939036,6.2545,148.22,148.17,6.12]
[1718353940729,6.2545,148.22,148.18,6.12]
[1718353940931,6.2545,148.22,148.17,6.12]
[1718353941927,16.4234,148.21,148.14,21.17341678]
[1718353942107,16.4234,148.21,148.16,6.12]
[1718353942451,22.5434,148.21,148.14,1.17341678]
[1718353942634,22.5434,148.21,148.16,6.12]
[1718353945309,22.5434,148.21,148.13,21.17355119]
[1718353945704,22.5434,148.21,148.16,6.12]
[1718353947017,22.5434,148.21,148.13,20.0]
[1718353947212,22.5434,148.21,148.15,6.12]
[1718353947741,22.5434,148.21,148.13,20.0]
[1718353947742,22.5434,148.21,148.16,6.12]
[1718353947915,16.4234,148.21,148.16,6.12]
[1718353948425,16.4234,148.21,148.17,6.12]
[1718353948627,16.4234,148.21,148.19,6.12]
[1718353948829,16.4234,148.21,148.2,6.12]
[1718353949035,6.2545,148.22,148.2,6.12]
[1718353949542,6.2545,148.22,148.14,2.6675]
[1718353949749,6.2545,148.22,148.19,6.12]
[1718353950766,6.2545,148.22,148.2,6.12]
[1718353953952,6.2545,148.22,148.14,45.17]
[1718353954131,16.0324,148.2,148.11,10.33568768]
[1718353954337,22.1524,148.2,148.11,10.33568768]
[1718353954541,16.0324,148.2,148.12,24.48]
[1718353955223,16.0324,148.2,148.12,26.9779]
[1718353955423,16.0324,148.2,148.13,65.17]
[1718353955744,16.0324,148.2,148.13,67.6677]
[1718353955954,6.2545,148.22,148.19,6.12]
[1718353956135,15.4792,148.25,148.21,6.12]
[1718353956447,15.4792,148.25,148.17,2.4969]
[1718353956448,15.4792,148.25,148.19,24.48]
[1718353956639,15.4792,148.25,148.2,20.0]
[1718353957225,15.4792,148.25,148.21,6.12]
[1718353957636,15.4792,148.25,148.22,6.12]
[1718353958854,15.4792,148.25,148.2,22.4966]
[1718353959055,0.8496994,148.32,148.24,6.12]
[1718353959056,15.2955,148.29,148.24,6.12]
[1718353959355,15.2955,148.29,148.26,6.12]
[1718353960457,15.2955,148.29,148.27,6.12]
[1718353960660,6.4515,148.3,148.28,6.12]
[1718353960821,6.4515,148.3,148.29,6.12]
[1718353961326,0.8496994,148.32,148.29,6.12]
[1718353961659,0.8496994,148.32,148.23,2.496]
[1718353961827,0.8496994,148.32,148.28,6.12]
[1718353962653,0.8496994,148.32,148.27,6.12]
[1718353962964,0.8496994,148.32,148.29,6.12]
[1718353969653,0.8496994,148.32,148.28,6.12]
[1718353973363,0.8496994,148.32,148.24,3.0059]
[1718353973531,0.8496994,148.32,148.28,6.12]
[1718353976065,0.8496994,148.32,148.29,6.12]
[1718353977241,0.8496994,148.32,148.25,2.4957]
[1718353977443,0.8496994,148.32,148.29,6.12]
[1718353978848,15.5669994,148.33,148.29,6.12]
[1718353979964,15.5669994,148.33,148.28,6.12]
[1718353980461,15.5669994,148.33,148.29,6.12]
[1718353981270,15.5669994,148.33,148.24,3.0059]
[1718353981440,15.5669994,148.33,148.29,6.12]
[1718353983289,259.7,148.42,148.28,2.4951]
[1718353983290,15.9949,148.36,148.28,2.4951]
[1718353983462,15.9949,148.36,148.33,6.12]
[1718353983795,15.9949,148.36,148.28,2.4951]
[1718353983987,15.9949,148.36,148.32,6.12]
[1718353984365,15.9949,148.36,148.33,6.12]
[1718353986881,15.9949,148.36,148.29,0.51]
[1718353987061,15.9949,148.36,148.33,6.12]
[1718353988174,15.9949,148.36,148.32,6.12]
[1718353989305,15.9949,148.36,148.33,6.12]
[1718353991403,15.9949,148.36,148.29,0.51]
[1718353991580,15.9949,148.36,148.32,6.12]
[1718353992590,15.9949,148.36,148.33,6.12]
[1718353994494,15.9949,148.36,148.29,3.005]
[1718353994802,15.9949,148.36,148.33,6.12]
[1718353996305,6.2771,148.38,148.33,6.12]
[1718353996511,6.2771,148.38,148.34,6.12]
[1718353998417,6.2771,148.38,148.3,2.4949]
[1718353998418,6.2771,148.38,148.35,6.12]
[1718353998582,16.1899,148.4,148.35,6.12]
[1718353999313,22.3099,148.4,148.35,6.12]
[1718354000528,16.1899,148.4,148.35,6.12]
[1718354000731,16.1899,148.4,148.36,6.12]
[1718354001031,16.1899,148.4,148.38,6.12]
[1718354002277,16.1899,148.4,148.33,24.48]
[1718354002483,16.1899,148.4,148.34,65.51]
[1718354002722,6.2475,148.42,148.34,65.51]
[1718354003283,12.3675,148.42,148.34,65.51]
[1718354004004,6.2475,148.42,148.34,65.51]
[1718354008520,6.2475,148.42,148.34,68.0042]
[1718354009497,6.2475,148.42,148.34,65.51]
[1718354009702,6.2475,148.42,148.34,68.0042]
[1718354010405,6.12,148.43,148.34,68.0042]
[1718354010613,16.2215,148.44,148.39,6.12]
[1718354011293,22.3415,148.44,148.38,6.12]
[1718354012111,6.12,148.43,148.38,6.12]
[1718354012414,16.2215,148.44,148.38,6.12]
[1718354012621,16.2215,148.44,148.35,2.664]
[1718354012800,22.3415,148.44,148.39,6.12]
[1718354014393,16.2215,148.44,148.36,2.4938]
[1718354014600,16.2215,148.44,148.4,6.12]
[1718354014924,16.2215,148.44,148.41,6.12]
[1718354015103,16.2215,148.44,148.37,0.51]
[1718354015300,16.2215,148.44,148.41,6.12]
[1718354015701,22.3415,148.44,148.37,0.51]
[1718354015998,22.3415,148.44,148.39,6.12]
[1718354016395,16.2215,148.44,148.35,0.17]
[1718354016590,16.2215,148.44,148.39,6.12]
[1718354017289,16.2215,148.44,148.35,3.174]
[1718354017290,16.2215,148.44,148.4,6.12]
[1718354017711,16.2215,148.44,148.41,6.12]
[1718354018220,16.2215,148.44,148.37,0.17]
[1718354018401,16.2215,148.44,148.4,6.12]
[1718354020012,16.2215,148.44,148.35,2.494]
[1718354020211,16.2215,148.44,148.36,0.51]
[1718354020520,16.2215,148.44,148.39,6.12]
[1718354020729,22.3415,148.44,148.36,0.51]
[1718354020913,22.3415,148.44,148.39,6.12]
[1718354021108,22.3415,148.44,148.38,6.12]
[1718354021524,6.12,148.43,148.34,20.0]
[1718354021701,6.12,148.43,148.37,6.12]
[1718354022025,6.12,148.42,148.34,20.0]
[1718354022839,6.12,148.42,148.33,2.4944]
[1718354022840,6.12,148.42,148.37,6.12]
[1718354023005,6.12,148.43,148.33,46.9744]
[1718354023206,6.12,148.43,148.33,44.48]
[1718354023409,6.12,148.43,148.37,6.12]
[1718354023608,6.12,148.42,148.37,6.12]
[1718354023932,0.17,148.43,148.37,6.12]
[1718354024129,6.12,148.43,148.37,6.12]
[1718354024308,6.12,148.43,148.38,6.12]
[1718354025526,6.12,148.43,148.37,6.12]
[1718354028515,6.12,148.41,148.33,20.0]
[1718354028814,6.12,148.41,148.36,6.12]
[1718354029015,6.12,148.41,148.35,6.12]
[1718354029405,6.12,148.41,148.33,20.0]
[1718354029620,6.12,148.41,148.35,6.12]
[1718354030106,6.12,148.41,148.33,20.0]
[1718354030438,15.936,148.4,148.34,6.12]
[1718354030731,22.056,148.4,148.34,6.12]
[1718354031514,22.056,148.4,148.35,6.12]
[1718354032021,22.056,148.4,148.34,6.12]
[1718354032415,22.056,148.4,148.35,6.12]
[1718354032732,15.936,148.4,148.36,6.12]
[1718354034112,15.936,148.4,148.35,6.12]
[1718354035917,15.936,148.4,148.32,0.17]
[1718354036223,22.056,148.4,148.32,0.34]
[1718354036417,22.056,148.4,148.31,65.17]
[1718354036621,22.056,148.4,148.34,6.12]
[1718354037514,15.936,148.4,148.35,6.12]
[1718354037709,15.936,148.4,148.36,6.12]
[1718354038725,6.2412,148.42,148.38,6.12]
[1718354043327,6.2412,148.42,148.34,0.17]
[1718354043639,6.2412,148.42,148.37,6.12]
[1718354043822,6.2412,148.42,148.34,65.0]
[1718354044028,16.3069,148.4,148.3,7.83768768]
[1718354044339,6.12,148.39,148.3,7.83768768]
[1718354044646,16.3069,148.4,148.3,7.83768768]
[1718354045337,16.3069,148.4,148.31,20.0]
[1718354045525,15.8227,148.36,148.29,9.30083457]
[1718354045725,15.8227,148.36,148.26,2.4956]
[1718354046036,15.8227,148.36,148.27,1.17242914]
[1718354047213,15.8227,148.36,148.27,46.17242914]
[1718354047419,15.8227,148.36,148.28,20.0]
[1718354050330,15.8227,148.36,148.27,46.17242914]
[1718354050331,6.3809,148.35,148.27,46.17242914]
[1718354052044,6.3809,148.35,148.27,1.17242914]
[1718354052218,6.3809,148.35,148.27,21.17242914]
[1718354054541,6.3809,148.35,148.29,2.4951]
[1718354054745,6.3809,148.35,148.27,21.17242914]
[1718354054746,6.3809,148.35,148.27,29.30119468]
[1718354054921,6.3809,148.35,148.27,1.17242914]
[1718354055241,6.3809,148.35,148.25,20.0]
[1718354055412,6.3809,148.35,148.26,0.17]
[1718354056421,6.3809,148.35,148.26,45.17]
[1718354058566,6.3809,148.35,148.26,45.0]
[1718354059332,6.3809,148.35,148.25,21.17259391]
[1718354059531,6.3809,148.35,148.26,20.0]
[1718354059765,6.3809,148.35,148.26,2.4954]
[1718354060231,6.3809,148.35,148.26,22.4954]
[1718354062267,16.282,148.34,148.25,1.17259391]
[1718354062762,16.282,148.34,148.25,21.17259391]
[1718354063636,15.539,148.31,148.22,20.0]
[1718354064148,6.5001,148.3,148.22,20.0]
[1718354064340,6.5001,148.3,148.21,8.12876554]
[1718354064735,0.17,148.28,148.21,8.12876554]
[1718354064936,21.5482,148.27,148.16,9.55189879]
[1718354065242,21.5482,148.27,148.17,2.497]
[1718354065961,21.5482,148.27,148.18,2.4969]
[1718354066266,21.5482,148.27,148.17,2.497]
[1718354066436,21.5482,148.27,148.18,2.4968]
[1718354066643,21.5482,148.27,148.19,2.4967]
[1718354066854,21.5482,148.27,148.19,23.66973274]
[1718354067469,21.5482,148.27,148.19,21.17303274]
[1718354067969,21.5482,148.27,148.19,23.66973274]
[1718354068151,21.5482,148.27,148.21,2.4963]
[1718354068336,21.5482,148.27,148.21,20.0]
[1718354069975,21.5096,148.35,148.22,5.3324]
[1718354070141,21.5096,148.35,148.24,2.4958]
[1718354070344,21.5096,148.35,148.24,47.4958]
[1718354070662,21.5096,148.35,148.25,20.0]
[1718354072469,0.17,148.33,148.22,22.8362]
[1718354072685,15.9955,148.34,148.23,45.0]
[1718354072852,15.6555,148.34,148.24,20.68]
[1718354073050,15.6555,148.34,148.25,45.0]
[1718354073253,15.6555,148.34,148.25,47.4957]
[1718354074460,15.6555,148.34,148.25,45.0]
[1718354076977,0.17,148.33,148.24,20.0]
[1718354077150,0.68,148.33,148.24,20.0]
[1718354077477,45.68,148.33,148.24,20.0]
[1718354077848,45.68,148.33,148.23,8.12876554]
[1718354077849,21.9772,148.32,148.23,8.12876554]
[1718354078083,21.9772,148.32,148.19,1.17303274]
[1718354078084,6.2595,148.3,148.19,1.17303274]
[1718354078264,0.17,148.29,148.19,1.17303274]
[1718354079448,45.34,148.29,148.19,1.17303274]
[1718354079666,0.17,148.27,148.19,1.17303274]
[1718354079864,0.34,148.27,148.19,1.17303274]
[1718354080071,0.34,148.27,148.19,21.17303274]
[1718354080588,0.34,148.27,148.19,1.17303274]
[1718354080882,21.524,148.26,148.19,1.17303274]
[1718354081469,21.524,148.26,148.19,46.17303274]
[1718354081666,21.524,148.26,148.2,20.0]
[1718354082281,21.524,148.26,148.19,1.17303274]
[1718354083480,21.524,148.26,148.19,21.17303274]
[1718354095012,21.524,148.26,148.19,1.17303274]
[1718354098934,21.524,148.26,148.19,3.66973274]
[1718354099391,21.524,148.26,148.19,23.66973274]
[1718354099591,21.524,148.26,148.19,21.17303274]
[1718354099786,21.524,148.26,148.19,23.66973274]
[1718354100009,21.524,148.26,148.19,3.66973274]
[1718354100297,21.524,148.26,148.19,48.66973274]
[1718354100715,21.524,148.26,148.19,46.17303274]
[1718354100899,21.524,148.26,148.2,2.4966]
[1718354101101,21.524,148.26,148.2,45.0]
[1718354101620,21.524,148.26,148.19,2.4967]
[1718354101621,21.524,148.26,148.19,48.66958611]
[1718354102421,21.524,148.26,148.19,1.17288611]
[1718354102739,0.17,148.25,148.14,2.4975]
[1718354102902,22.2284,148.24,148.14,22.4975]
[1718354103105,22.2284,148.24,148.15,2.4974]
[1718354103733,22.2284,148.24,148.15,8.12876554]
[1718354103933,22.2284,148.24,148.16,22.6672]
[1718354104320,22.2284,148.24,148.17,45.0]
[1718354104523,22.2284,148.24,148.17,47.4971]
[1718354104728,22.2284,148.24,148.17,45.0]
[1718354107032,22.2284,148.24,148.16,20.0]
[1718354108309,0.17,148.23,148.16,20.0]
[1718354108637,22.2284,148.24,148.16,22.4972]
[1718354108805,22.2284,148.24,148.17,2.497]
[1718354109007,22.2284,148.24,148.21,2.4964]
[1718354109219,16.0218,148.24,148.22,2.4962]
[1718354109410,6.3173,148.27,148.22,2.4962]
[1718354109614,6.3173,148.27,148.21,0.17]
[1718354109839,6.3173,148.27,148.21,65.68]
[1718354110217,6.3173,148.27,148.22,2.4962]
[1718354111125,6.3173,148.27,148.21,68.1763]
[1718354111813,6.3173,148.27,148.21,65.34]
[1718354112038,6.3173,148.27,148.18,8.15577665]
[1718354112217,6.3173,148.27,148.19,45.51]
[1718354112534,6.3173,148.27,148.2,20.0]
[1718354118556,6.3173,148.27,148.18,8.15577665]
[1718354118769,6.3173,148.27,148.19,20.0]
[1718354121781,6.7074,148.25,148.15,7.05479879]
[1718354122081,15.6473,148.24,148.13,8.8465346]
[1718354122285,15.6473,148.24,148.14,2.4976]
[1718354122785,6.6444,148.23,148.14,2.4975]
[1718354122989,6.6444,148.23,148.15,2.4974]
[1718354123977,6.6444,148.23,148.14,22.4976]
[1718354124191,6.6444,148.23,148.14,2.4976]
[1718354124793,5.10085496,148.23,148.15,2.4974]
[1718354124999,5.10085496,148.23,148.16,2.4972]
[1718354125368,5.10085496,148.23,148.16,45.0]
[1718354127497,5.10085496,148.23,148.15,20.0]
[1718354127673,5.10085496,148.23,148.14,0.51]
[1718354128205,5.10085496,148.23,148.14,45.51]
[1718354128504,5.10085496,148.23,148.15,20.0]
[1718354133115,15.1373,148.24,148.18,0.17]
[1718354133332,15.1373,148.24,148.18,33.82957665]
[1718354133488,6.4083,148.27,148.21,2.4963]
[1718354133693,6.4083,148.27,148.22,0.17]
[1718354134014,6.4083,148.27,148.22,2.6662]
[1718354134215,6.4083,148.27,148.23,2.4959]
[1718354134391,15.1215,148.28,148.24,0.51]
[1718354134715,15.1215,148.28,148.25,2.4957]
[1718354135015,15.1215,148.28,148.25,20.0]
[1718354136209,15.1215,148.28,148.22,2.6662]
[1718354136430,15.1215,148.28,148.23,0.51]
[1718354136716,15.1215,148.28,148.23,20.51]
[1718354137084,15.1215,148.28,148.19,2.4967]
[1718354138327,15.1215,148.28,148.18,9.73937657]
[1718354138732,15.1215,148.28,148.19,20.0]
[1718354139103,15.1215,148.28,148.18,9.73937657]
[1718354139997,15.1215,148.28,148.19,45.0]
[1718354140723,15.1215,148.28,148.19,47.4967]
[1718354141035,15.1215,148.28,148.2,20.0]
[1718354141599,15.1215,148.28,148.18,9.73947657]
[1718354141600,15.1215,148.28,148.19,20.0]
[1718354143114,15.1215,148.28,148.19,22.4967]
[1718354143727,15.1215,148.28,148.2,2.4966]
[1718354143908,15.1215,148.28,148.2,47.4966]
[1718354144101,15.1215,148.28,148.21,2.4964]
[1718354144303,15.1215,148.28,148.21,45.0]
[1718354144829,15.1215,148.28,148.2,47.4965]
[1718354145337,15.1215,148.28,148.2,45.0]
[1718354146426,15.1215,148.28,148.19,20.51]
[1718354150142,15.1215,148.28,148.2,2.4965]
[1718354151525,15.1215,148.28,148.19,23.0067]
[1718354152245,15.1215,148.28,148.2,47.8365]
[1718354152410,15.1215,148.28,148.21,22.4964]
[1718354152613,15.1215,148.28,148.21,24.9928]
[1718354152819,15.1215,148.28,148.22,50.6724]
[1718354153139,15.1215,148.28,148.23,22.496]
[1718354153520,15.1215,148.28,148.25,2.4957]
[1718354153724,15.1215,148.28,148.25,20.0]
[1718354155440,15.1215,148.28,148.24,45.0]
[1718354155640,6.0729,148.3,148.26,20.0]
[1718354155844,6.0729,148.3,148.25,2.4957]
[1718354156342,6.0729,148.3,148.24,2.6658]
[1718354158529,6.0729,148.3,148.25,2.4957]
[1718354158742,6.0729,148.3,148.24,0.17]
[1718354159067,6.0729,148.3,148.24,0.68]
[1718354159343,6.0729,148.3,148.25,2.4957]
[1718354160522,6.0729,148.3,148.24,3.1758]
[1718354161416,6.0729,148.3,148.25,2.4957]
[1718354162039,6.0729,148.3,148.24,0.17]
[1718354162243,6.0729,148.3,148.23,67.496]
[1718354162747,6.0729,148.3,148.24,3.0058]
[1718354162977,6.0729,148.3,148.25,2.4957]
[1718354164660,6.0729,148.3,148.24,3.0058]
[1718354165454,6.0729,148.3,148.24,2.8358]
[1718354165643,6.0729,148.3,148.25,2.4956]
[1718354165960,6.0729,148.3,148.26,2.4955]
[1718354166252,6.0729,148.3,148.25,67.4956]
[1718354166463,16.1147,148.32,148.26,0.34]
[1718354166666,16.1147,148.32,148.29,2.4949]
[1718354167158,16.1147,148.32,148.29,22.4949]
[1718354167537,16.1147,148.32,148.29,20.0]
[1718354169142,16.1147,148.32,148.21,38.8194]
[1718354169443,16.1147,148.32,148.23,2.496]
[1718354169640,16.1147,148.32,148.24,2.4958]
[1718354170946,16.1147,148.32,148.23,55.4942]
[1718354171148,16.1147,148.32,148.25,2.4957]
[1718354171360,16.1147,148.32,148.25,47.4957]
[1718354171666,16.1147,148.32,148.23,7.36133221]
[1718354171854,16.1147,148.32,148.23,9.85733221]
[1718354172161,16.1147,148.32,148.23,2.496]
[1718354172364,16.1147,148.32,148.24,2.4958]
[1718354173670,6.2803,148.3,148.21,2.4963]
[1718354173851,15.6296,148.29,148.21,2.4963]
[1718354175068,15.6296,148.29,148.22,2.4962]
[1718354175279,15.6296,148.29,148.22,67.4962]
[1718354175458,15.6296,148.29,148.23,2.4961]
[1718354176844,15.6296,148.29,148.23,47.4961]
[1718354178570,15.6296,148.29,148.23,45.0]
[1718354179760,15.6296,148.29,148.23,47.4961]
[1718354179964,15.6296,148.29,148.23,45.0]
[1718354180164,15.6296,148.29,148.22,20.0]
[1718354180481,15.6296,148.29,148.21,20.0]
[1718354180651,15.6296,148.29,148.22,45.0]
[1718354180853,15.6296,148.29,148.23,20.0]
[1718354182475,15.6296,148.29,148.21,20.0]
[1718354182874,15.6296,148.29,148.2,21.17148034]
[1718354183773,6.5903,148.28,148.2,21.17148034]
[1718354185361,6.5903,148.28,148.2,1.17148034]
[1718354185772,6.5903,148.28,148.2,21.17148034]
[1718354186573,6.5903,148.28,148.2,20.0]
[1718354186774,15.2859,148.27,148.18,22.4968]
[1718354187272,15.2859,148.27,148.18,2.4968]
[1718354187778,15.2859,148.27,148.18,47.4968]
[1718354187956,15.2859,148.27,148.19,20.0]
[1718354188359,15.3374,148.25,148.17,1.17220613]
[1718354188587,15.3374,148.25,148.16,7.36133221]
[1718354188588,15.3374,148.25,148.15,2.4974]
[1718354188753,15.3374,148.25,148.16,2.4972]
[1718354189779,15.3374,148.25,148.17,2.4971]
[1718354190171,15.3374,148.25,148.17,22.4971]
[1718354190374,15.3374,148.25,148.17,20.0]
[1718354192670,15.3374,148.25,148.15,23.66970089]
[1718354192867,15.3374,148.25,148.15,21.17240089]
[1718354193071,15.3374,148.25,148.15,23.66970089]
[1718354193293,15.3374,148.25,148.16,2.4972]
[1718354193592,15.3374,148.25,148.16,20.0]
[1718354193964,15.3374,148.25,148.16,22.4972]
[1718354194168,15.3374,148.25,148.17,20.0]
[1718354194382,15.3374,148.25,148.17,2.4971]
[1718354194765,15.3374,148.25,148.17,22.4971]
[1718354195789,15.3374,148.25,148.19,2.4967]
[1718354196164,15.3374,148.25,148.19,20.0]
[1718354196390,15.3374,148.25,148.19,22.4966]
[1718354196888,15.3374,148.25,148.2,2.4966]
[1718354197061,15.3374,148.25,148.2,45.17]
[1718354197274,15.3374,148.25,148.21,20.0]
[1718354200696,15.3374,148.25,148.19,2.8366]
[1718354200894,15.3374,148.25,148.17,17.38979767]
[1718354201066,15.3374,148.25,148.18,65.0]
[1718354201408,15.3374,148.25,148.15,1.17240089]
[1718354201592,15.3374,148.25,148.15,3.66970089]
[1718354202485,15.3374,148.25,148.16,2.4972]
[1718354202682,15.3374,148.25,148.16,67.4972]
[1718354205267,15.3374,148.25,148.2,2.4965]
[1718354207375,15.3374,148.25,148.2,20.0]
[1718354216418,15.3374,148.25,148.19,45.0]
[1718354216622,15.3374,148.25,148.2,20.0]
[1718354216827,15.3374,148.25,148.19,22.4967]
[1718354219138,15.3374,148.25,148.2,2.4965]